[Event "Titled Tuesday Blitz May 23 Late 2023"]
[White "Prieto Aranguren, Alain"]
[Black "The_Sherman_Variation"]
[WhiteFideId "2268906"]
[WhiteElo "2209"]
[BlackElo "2515"]
[Result "1/2-1/2"]
[Round "02"]
[TimeControl "180+2"]
[Date "2023.05.23"]
[WhiteClock "0:00:07"]
[BlackClock "0:00:17"]

1. e4 {[%clk 0:03:00]}  b6 {[%clk 0:02:57]} 2. d4 {[%clk 0:03:00]}  Bb7 {[%clk 0:02:58]} 3. Bd3 {[%clk 0:02:59]}  g6 {[%clk 0:02:57]} 4. f4 {[%clk 0:02:57]}  Bg7 {[%clk 0:02:57]} 5. Nf3 {[%clk 0:02:57]}  d6 {[%clk 0:02:54]} 6. O-O {[%clk 0:02:55]}  Nd7 {[%clk 0:02:55]} 7. Qe1 {[%clk 0:02:52]}  Ngf6 {[%clk 0:02:52]} 8. e5 {[%clk 0:02:51]}  dxe5 {[%clk 0:02:47]} 9. fxe5 {[%clk 0:02:50]}  Ng8 {[%clk 0:02:43]} 10. Ng5 {[%clk 0:02:41]}  Nh6 {[%clk 0:02:41]} 11. e6 {[%clk 0:02:41]}  Nf6 {[%clk 0:02:39]} 12. exf7+ {[%clk 0:02:39]}  Nxf7 {[%clk 0:02:35]} 13. Nxf7 {[%clk 0:02:37]}  Kxf7 {[%clk 0:02:32]} 14. c3 {[%clk 0:02:34]}  Re8 {[%clk 0:02:26]} 15. Nd2 {[%clk 0:02:32]}  Kg8 {[%clk 0:02:22]} 16. Nf3 {[%clk 0:02:31]}  c5 {[%clk 0:02:11]} 17. Bc4+ {[%clk 0:02:29]}  Bd5 {[%clk 0:02:11]} 18. Bxd5+ {[%clk 0:02:29]}  Qxd5 {[%clk 0:02:12]} 19. dxc5 {[%clk 0:02:26]}  Qxc5+ {[%clk 0:02:04]} 20. Be3 {[%clk 0:02:24]}  Qh5 {[%clk 0:02:01]} 21. Rd1 {[%clk 0:02:14]}  e5 {[%clk 0:01:59]} 22. Qh4 {[%clk 0:01:59]}  Qxh4 {[%clk 0:01:54]} 23. Nxh4 {[%clk 0:01:59]}  Rad8 {[%clk 0:01:51]} 24. Nf3 {[%clk 0:01:57]}  Ne4 {[%clk 0:01:31]} 25. Rfe1 {[%clk 0:01:40]}  Bf6 {[%clk 0:01:16]} 26. Rxd8 {[%clk 0:01:34]}  Rxd8 {[%clk 0:01:16]} 27. Bxb6 {[%clk 0:01:26]}  axb6 {[%clk 0:01:13]} 28. Rxe4 {[%clk 0:01:26]}  Rd1+ {[%clk 0:01:13]} 29. Re1 {[%clk 0:01:24]}  Rd5 {[%clk 0:01:11]} 30. Kf2 {[%clk 0:01:16]}  h5 {[%clk 0:01:07]} 31. Ke3 {[%clk 0:01:09]}  Kf7 {[%clk 0:01:02]} 32. Ke4 {[%clk 0:01:08]}  Ra5 {[%clk 0:01:01]} 33. a3 {[%clk 0:01:05]}  Ra4+ {[%clk 0:01:01]} 34. Ke3 {[%clk 0:01:01]}  g5 {[%clk 0:00:59]} 35. Kd3 {[%clk 0:00:45]}  Rg4 {[%clk 0:00:53]} 36. Nxe5+ {[%clk 0:00:38]}  Bxe5 {[%clk 0:00:52]} 37. Rxe5 {[%clk 0:00:38]}  Rxg2 {[%clk 0:00:52]} 38. Re2 {[%clk 0:00:37]}  Rg1 {[%clk 0:00:52]} 39. Kc4 {[%clk 0:00:30]}  g4 {[%clk 0:00:50]} 40. Kb5 {[%clk 0:00:27]}  h4 {[%clk 0:00:50]} 41. Kxb6 {[%clk 0:00:26]}  g3 {[%clk 0:00:47]} 42. hxg3 {[%clk 0:00:25]}  hxg3 {[%clk 0:00:48]} 43. b4 {[%clk 0:00:22]}  Rc1 {[%clk 0:00:41]} 44. Rg2 {[%clk 0:00:16]}  Rxc3 {[%clk 0:00:41]} 45. a4 {[%clk 0:00:16]}  Ke6 {[%clk 0:00:42]} 46. a5 {[%clk 0:00:15]}  Kd7 {[%clk 0:00:42]} 47. b5 {[%clk 0:00:15]}  Kc8 {[%clk 0:00:42]} 48. a6 {[%clk 0:00:15]}  Kb8 {[%clk 0:00:37]} 49. Re2 {[%clk 0:00:14]}  Rc8 {[%clk 0:00:34]} 50. Rg2 {[%clk 0:00:11]}  Rg8 {[%clk 0:00:34]} 51. Kc6 {[%clk 0:00:10]}  Rg6+ {[%clk 0:00:34]} 52. Kc5 {[%clk 0:00:11]}  Ka7 {[%clk 0:00:34]} 53. Kb4 {[%clk 0:00:11]}  Kb6 {[%clk 0:00:34]} 54. Ka4 {[%clk 0:00:11]}  Rg4+ {[%clk 0:00:34]} 55. Kb3 {[%clk 0:00:10]}  Kxb5 {[%clk 0:00:32]} 56. a7 {[%clk 0:00:11]}  Rb4+ {[%clk 0:00:31]} 57. Kc3 {[%clk 0:00:10]}  Ra4 {[%clk 0:00:31]} 58. Rb2+ {[%clk 0:00:09]}  Kc5 {[%clk 0:00:30]} 59. Rg2 {[%clk 0:00:06]}  Rxa7 {[%clk 0:00:30]} 60. Kd3 {[%clk 0:00:06]}  Kd5 {[%clk 0:00:24]} 61. Ke3 {[%clk 0:00:06]}  Ke5 {[%clk 0:00:23]} 62. Kf3 {[%clk 0:00:06]}  Ra3+ {[%clk 0:00:22]} 63. Kg4 {[%clk 0:00:06]}  Ke4 {[%clk 0:00:22]} 64. Rxg3 {[%clk 0:00:06]}  Ra8 {[%clk 0:00:23]} 65. Kh3 {[%clk 0:00:06]}  Rh8+ {[%clk 0:00:21]} 66. Kg2 {[%clk 0:00:07]}  Rh4 {[%clk 0:00:20]} 67. Kf2 {[%clk 0:00:07]}  Rh2+ {[%clk 0:00:20]} 68. Rg2 {[%clk 0:00:07]}  Rh3 {[%clk 0:00:21]} 69. Rg3 {[%clk 0:00:07]}  Rh4 {[%clk 0:00:20]} 70. Rg2 {[%clk 0:00:07]}  Rf4+ {[%clk 0:00:20]} 71. Kg3 {[%clk 0:00:08]}  Rf3+ {[%clk 0:00:20]} 72. Kg4 {[%clk 0:00:08]}  Rf8 {[%clk 0:00:20]} 73. Re2+ {[%clk 0:00:08]}  Kd3 {[%clk 0:00:21]} 74. Rg2 {[%clk 0:00:08]}  Ke3 {[%clk 0:00:21]} 75. Rg3+ {[%clk 0:00:08]}  Ke4 {[%clk 0:00:22]} 76. Rg2 {[%clk 0:00:08]}  Rg8+ {[%clk 0:00:22]} 77. Kh3 {[%clk 0:00:09]}  Rh8+ {[%clk 0:00:22]} 78. Kg4 {[%clk 0:00:09]}  Rg8+ {[%clk 0:00:23]} 79. Kh3 {[%clk 0:00:09]}  Ra8 {[%clk 0:00:23]} 80. Rg4+ {[%clk 0:00:09]}  Kf3 {[%clk 0:00:23]} 81. Rg3+ {[%clk 0:00:09]}  Kf2 {[%clk 0:00:23]} 82. Rg2+ {[%clk 0:00:09]}  Kf1 {[%clk 0:00:24]} 83. Rg4 {[%clk 0:00:09]}  Rh8+ {[%clk 0:00:22]} 84. Rh4 {[%clk 0:00:09]}  Rf8 {[%clk 0:00:22]} 85. Rg4 {[%clk 0:00:09]}  Kf2 {[%clk 0:00:22]} 86. Kh4 {[%clk 0:00:08]}  Kf3 {[%clk 0:00:21]} 87. Rg3+ {[%clk 0:00:08]}  Kf2 {[%clk 0:00:22]} 88. Rg4 {[%clk 0:00:08]}  Rh8+ {[%clk 0:00:22]} 89. Kg5 {[%clk 0:00:08]}  Rg8+ {[%clk 0:00:23]} 90. Kh5 {[%clk 0:00:08]}  Rf8 {[%clk 0:00:23]} 91. Rg5 {[%clk 0:00:08]}  Kf3 {[%clk 0:00:22]} 92. Kg6 {[%clk 0:00:08]}  Kf4 {[%clk 0:00:22]} 93. Ra5 {[%clk 0:00:07]}  Rg8+ {[%clk 0:00:22]} 94. Kf7 {[%clk 0:00:07]}  Rb8 {[%clk 0:00:22]} 95. Kf6 {[%clk 0:00:06]}  Rb6+ {[%clk 0:00:21]} 96. Kg7 {[%clk 0:00:06]}  Rb7+ {[%clk 0:00:21]} 97. Kf6 {[%clk 0:00:07]}  Rc7 {[%clk 0:00:17]} 98. Kg6 {[%clk 0:00:07]} 1/2-1/2


[Site "https://www.chess.com"]

[Event "Titled Tuesday Blitz May 23 Late 2023"]
[White "Baches Garcia, Guillermo"]
[Black "Slavin, Alexey"]
[WhiteFideId "2209764"]
[BlackFideId "24104388"]
[WhiteElo "2515"]
[BlackElo "2264"]
[Result "1-0"]
[Round "02"]
[TimeControl "180+2"]
[Date "2023.05.23"]
[WhiteClock "0:00:24"]
[BlackClock "0:00:16"]

1. e4 {[%clk 0:03:00]}  Nc6 {[%clk 0:02:59]} 2. Nf3 {[%clk 0:03:00]}  d6 {[%clk 0:02:59]} 3. h3 {[%clk 0:02:58]}  Nf6 {[%clk 0:02:59]} 4. Nc3 {[%clk 0:02:55]}  e5 {[%clk 0:02:59]} 5. d4 {[%clk 0:02:54]}  Be7 {[%clk 0:02:57]} 6. Bc4 {[%clk 0:02:46]}  O-O {[%clk 0:02:56]} 7. O-O {[%clk 0:02:43]}  a6 {[%clk 0:02:54]} 8. a4 {[%clk 0:02:41]}  h6 {[%clk 0:02:47]} 9. Bb3 {[%clk 0:02:33]}  Bd7 {[%clk 0:02:36]} 10. Re1 {[%clk 0:02:31]}  Qc8 {[%clk 0:02:36]} 11. Kh2 {[%clk 0:02:24]}  Re8 {[%clk 0:02:36]} 12. Be3 {[%clk 0:02:19]}  Bf8 {[%clk 0:02:35]} 13. dxe5 {[%clk 0:02:12]}  dxe5 {[%clk 0:02:33]} 14. Nh4 {[%clk 0:02:04]}  Be6 {[%clk 0:02:30]} 15. Bxe6 {[%clk 0:01:50]}  Qxe6 {[%clk 0:02:29]} 16. Qf3 {[%clk 0:01:47]}  Rad8 {[%clk 0:02:23]} 17. Rad1 {[%clk 0:01:47]}  Nb4 {[%clk 0:02:09]} 18. Qe2 {[%clk 0:01:41]}  g6 {[%clk 0:01:58]} 19. Nf3 {[%clk 0:01:38]}  Bg7 {[%clk 0:01:58]} 20. Bc5 {[%clk 0:01:36]}  Nc6 {[%clk 0:01:58]} 21. Be3 {[%clk 0:01:27]}  Nh5 {[%clk 0:01:57]} 22. g3 {[%clk 0:01:24]}  Nf6 {[%clk 0:01:51]} 23. Rxd8 {[%clk 0:01:22]}  Rxd8 {[%clk 0:01:51]} 24. Rd1 {[%clk 0:01:21]}  Rxd1 {[%clk 0:01:49]} 25. Qxd1 {[%clk 0:01:21]}  Kh7 {[%clk 0:01:39]} 26. Kg2 {[%clk 0:01:18]}  Qc4 {[%clk 0:01:39]} 27. Qd3 {[%clk 0:01:16]}  Qb4 {[%clk 0:01:31]} 28. b3 {[%clk 0:01:16]}  Qe7 {[%clk 0:01:31]} 29. Nd5 {[%clk 0:01:08]}  Nxd5 {[%clk 0:01:17]} 30. Qxd5 {[%clk 0:01:08]}  Qd6 {[%clk 0:01:14]} 31. Qxf7 {[%clk 0:01:03]}  Nb4 {[%clk 0:01:04]} 32. Qc4 {[%clk 0:00:52]}  Nc6 {[%clk 0:01:04]} 33. Qd5 {[%clk 0:00:43]}  Qe7 {[%clk 0:00:55]} 34. Bc5 {[%clk 0:00:43]}  Qe8 {[%clk 0:00:50]} 35. c3 {[%clk 0:00:41]}  Qc8 {[%clk 0:00:42]} 36. Nh2 {[%clk 0:00:35]}  Nd8 {[%clk 0:00:26]} 37. Ng4 {[%clk 0:00:32]}  b6 {[%clk 0:00:26]} 38. Be7 {[%clk 0:00:26]}  Qe6 {[%clk 0:00:16]} 39. Bxd8 {[%clk 0:00:24]} 1-0


[Site "https://www.chess.com"]

[Event "Titled Tuesday Blitz May 23 Late 2023"]
[White "Ladan, Nicholas"]
[Black "Smiechu"]
[WhiteFideId "30918855"]
[WhiteElo "2167"]
[BlackElo "2334"]
[Result "1-0"]
[Round "02"]
[TimeControl "180+2"]
[Date "2023.05.23"]
[WhiteClock "0:00:15"]
[BlackClock "0:01:17"]

1. d4 {[%clk 0:03:00]}  Nf6 {[%clk 0:02:59]} 2. Nf3 {[%clk 0:02:59]}  c5 {[%clk 0:02:57]} 3. c3 {[%clk 0:02:58]}  g6 {[%clk 0:02:57]} 4. e3 {[%clk 0:02:58]}  b6 {[%clk 0:02:55]} 5. Bd3 {[%clk 0:02:58]}  Bb7 {[%clk 0:02:56]} 6. Qe2 {[%clk 0:02:59]}  Bg7 {[%clk 0:02:52]} 7. e4 {[%clk 0:02:58]}  cxd4 {[%clk 0:02:50]} 8. cxd4 {[%clk 0:02:57]}  d5 {[%clk 0:02:50]} 9. e5 {[%clk 0:02:57]}  Ne4 {[%clk 0:02:50]} 10. Nc3 {[%clk 0:02:55]}  Nxc3 {[%clk 0:02:48]} 11. bxc3 {[%clk 0:02:56]}  O-O {[%clk 0:02:47]} 12. h4 {[%clk 0:02:56]}  h5 {[%clk 0:02:46]} 13. Ng5 {[%clk 0:02:47]}  Bc8 {[%clk 0:02:43]} 14. e6 {[%clk 0:02:42]}  f5 {[%clk 0:02:35]} 15. g4 {[%clk 0:02:23]}  Rf6 {[%clk 0:02:17]} 16. gxf5 {[%clk 0:02:18]}  gxf5 {[%clk 0:02:14]} 17. Rg1 {[%clk 0:02:06]}  Qd6 {[%clk 0:02:09]} 18. Qxh5 {[%clk 0:01:53]}  Bxe6 {[%clk 0:01:58]} 19. Qe8+ {[%clk 0:01:50]}  Rf8 {[%clk 0:01:58]} 20. Qh5 {[%clk 0:01:17]}  Rf6 {[%clk 0:01:57]} 21. Kf1 {[%clk 0:00:52]}  Bf7 {[%clk 0:01:46]} 22. Qh7+ {[%clk 0:00:38]}  Kf8 {[%clk 0:01:46]} 23. Ne6+ {[%clk 0:00:21]}  Qxe6 {[%clk 0:01:44]} 24. Qxg7+ {[%clk 0:00:21]}  Ke8 {[%clk 0:01:44]} 25. Bb5+ {[%clk 0:00:22]}  Kd8 {[%clk 0:01:39]} 26. Qh8+ {[%clk 0:00:18]}  Kc7 {[%clk 0:01:38]} 27. Bf4+ {[%clk 0:00:18]}  Kb7 {[%clk 0:01:38]} 28. Re1 {[%clk 0:00:18]}  Qc8 {[%clk 0:01:31]} 29. Rxe7+ {[%clk 0:00:16]}  Nd7 {[%clk 0:01:17]} 30. Qxf6 {[%clk 0:00:15]} 1-0


[Site "https://www.chess.com"]

[Event "Titled Tuesday Blitz May 23 Late 2023"]
[White "Peatman, Carter"]
[Black "Ismayil, Malak"]
[WhiteFideId "2096480"]
[BlackFideId "13412604"]
[WhiteElo "2003"]
[BlackElo "1868"]
[Result "1/2-1/2"]
[Round "02"]
[TimeControl "180+2"]
[Date "2023.05.23"]
[WhiteClock "0:00:04"]
[BlackClock "0:00:11"]

1. d4 {[%clk 0:02:59]}  Nf6 {[%clk 0:02:58]} 2. Bf4 {[%clk 0:03:00]}  d5 {[%clk 0:02:57]} 3. e3 {[%clk 0:03:00]}  e6 {[%clk 0:02:58]} 4. Nf3 {[%clk 0:02:59]}  Be7 {[%clk 0:02:57]} 5. Ne5 {[%clk 0:02:55]}  O-O {[%clk 0:02:55]} 6. Nd2 {[%clk 0:02:54]}  c5 {[%clk 0:02:56]} 7. c3 {[%clk 0:02:53]}  Nc6 {[%clk 0:02:55]} 8. Bd3 {[%clk 0:02:49]}  h6 {[%clk 0:02:55]} 9. h3 {[%clk 0:02:42]}  Nxe5 {[%clk 0:02:48]} 10. Bxe5 {[%clk 0:02:34]}  Nd7 {[%clk 0:02:47]} 11. Bg3 {[%clk 0:02:32]}  Qb6 {[%clk 0:02:42]} 12. Rb1 {[%clk 0:02:31]}  Bd6 {[%clk 0:02:39]} 13. f4 {[%clk 0:02:19]}  cxd4 {[%clk 0:02:22]} 14. exd4 {[%clk 0:02:20]}  Re8 {[%clk 0:02:18]} 15. Nf3 {[%clk 0:02:05]}  Nf8 {[%clk 0:02:16]} 16. O-O {[%clk 0:01:58]}  Bd7 {[%clk 0:02:15]} 17. Bc2 {[%clk 0:01:37]}  Bb5 {[%clk 0:02:14]} 18. Re1 {[%clk 0:01:37]}  Qc7 {[%clk 0:02:12]} 19. Qd2 {[%clk 0:01:23]}  Bc4 {[%clk 0:02:07]} 20. a4 {[%clk 0:01:15]}  Ba6 {[%clk 0:02:03]} 21. Ne5 {[%clk 0:01:09]}  Bxe5 {[%clk 0:01:54]} 22. fxe5 {[%clk 0:01:05]}  b5 {[%clk 0:01:47]} 23. Bh4 {[%clk 0:00:59]}  bxa4 {[%clk 0:01:43]} 24. Bxa4 {[%clk 0:01:00]}  Rec8 {[%clk 0:01:38]} 25. Bc2 {[%clk 0:01:00]}  Rab8 {[%clk 0:01:36]} 26. Re3 {[%clk 0:00:55]}  Ng6 {[%clk 0:01:09]} 27. Bf2 {[%clk 0:00:43]}  Qc4 {[%clk 0:00:50]} 28. Bd3 {[%clk 0:00:32]}  Qc6 {[%clk 0:00:48]} 29. Bc2 {[%clk 0:00:29]}  Qb5 {[%clk 0:00:41]} 30. Bd3 {[%clk 0:00:25]}  Qb6 {[%clk 0:00:41]} 31. Bc2 {[%clk 0:00:26]}  Qb5 {[%clk 0:00:34]} 32. Bd3 {[%clk 0:00:25]}  Qb6 {[%clk 0:00:33]} 33. Bxg6 {[%clk 0:00:25]}  fxg6 {[%clk 0:00:33]} 34. Rg3 {[%clk 0:00:25]}  g5 {[%clk 0:00:25]} 35. h4 {[%clk 0:00:24]}  gxh4 {[%clk 0:00:24]} 36. Rg6 {[%clk 0:00:24]}  Kh7 {[%clk 0:00:21]} 37. Rg4 {[%clk 0:00:22]}  Qb5 {[%clk 0:00:19]} 38. Bxh4 {[%clk 0:00:18]}  Qd3 {[%clk 0:00:18]} 39. Rd1 {[%clk 0:00:13]}  Qxd2 {[%clk 0:00:17]} 40. Rxd2 {[%clk 0:00:14]}  Bc4 {[%clk 0:00:16]} 41. Be7 {[%clk 0:00:14]}  Rb7 {[%clk 0:00:14]} 42. Bd6 {[%clk 0:00:14]}  Rf7 {[%clk 0:00:14]} 43. Rg3 {[%clk 0:00:09]}  Rf1+ {[%clk 0:00:13]} 44. Kh2 {[%clk 0:00:09]}  Rc6 {[%clk 0:00:14]} 45. Rc2 {[%clk 0:00:04]}  Rb6 {[%clk 0:00:14]} 46. Bc5 {[%clk 0:00:04]}  Rb7 {[%clk 0:00:14]} 47. Bb4 {[%clk 0:00:04]}  Rb5 {[%clk 0:00:13]} 48. Rd2 {[%clk 0:00:02]}  a5 {[%clk 0:00:14]} 49. Bd6 {[%clk 0:00:02]}  Rb1 {[%clk 0:00:14]} 50. Ba3 {[%clk 0:00:02]}  Rf1 {[%clk 0:00:13]} 51. Rf3 {[%clk 0:00:03]}  Rxf3 {[%clk 0:00:13]} 52. gxf3 {[%clk 0:00:04]}  Kg6 {[%clk 0:00:14]} 53. Kg3 {[%clk 0:00:04]}  Kf5 {[%clk 0:00:14]} 54. Rh2 {[%clk 0:00:05]}  Rb7 {[%clk 0:00:13]} 55. Rh5+ {[%clk 0:00:05]}  Kg6 {[%clk 0:00:13]} 56. Rh4 {[%clk 0:00:06]}  Rf7 {[%clk 0:00:14]} 57. Rg4+ {[%clk 0:00:06]}  Kh7 {[%clk 0:00:14]} 58. Rf4 {[%clk 0:00:06]}  Rxf4 {[%clk 0:00:11]} 59. Kxf4 {[%clk 0:00:07]}  g5+ {[%clk 0:00:11]} 60. Kg4 {[%clk 0:00:07]}  Kg6 {[%clk 0:00:12]} 61. Be7 {[%clk 0:00:06]}  h5+ {[%clk 0:00:13]} 62. Kg3 {[%clk 0:00:06]}  Kf5 {[%clk 0:00:14]} 63. Bd8 {[%clk 0:00:06]}  a4 {[%clk 0:00:14]} 64. Be7 {[%clk 0:00:06]}  Be2 {[%clk 0:00:14]} 65. Bd6 {[%clk 0:00:05]}  h4+ {[%clk 0:00:14]} 66. Kf2 {[%clk 0:00:06]}  Kf4 {[%clk 0:00:15]} 67. Kxe2 {[%clk 0:00:06]}  Kg3 {[%clk 0:00:15]} 68. Kf1 {[%clk 0:00:03]}  Kxf3 {[%clk 0:00:15]} 69. Be7 {[%clk 0:00:03]}  Kf4 {[%clk 0:00:14]} 70. Kf2 {[%clk 0:00:03]}  h3 {[%clk 0:00:14]} 71. Bf6 {[%clk 0:00:02]}  Kg4 {[%clk 0:00:11]} 72. Kg1 {[%clk 0:00:02]}  Kf4 {[%clk 0:00:09]} 73. Kh2 {[%clk 0:00:02]}  g4 {[%clk 0:00:10]} 74. Bh4 {[%clk 0:00:03]}  Kf3 {[%clk 0:00:10]} 75. Bg3 {[%clk 0:00:02]}  Ke3 {[%clk 0:00:11]} 76. Bh4 {[%clk 0:00:03]}  Kd3 {[%clk 0:00:11]} 77. Be7 {[%clk 0:00:03]}  Kc2 {[%clk 0:00:11]} 78. Ba3 {[%clk 0:00:03]}  Kd3 {[%clk 0:00:11]} 79. Be7 {[%clk 0:00:03]}  Kc2 {[%clk 0:00:11]} 80. Ba3 {[%clk 0:00:03]}  Kd3 {[%clk 0:00:11]} 81. Be7 {[%clk 0:00:04]} 1/2-1/2


[Site "https://www.chess.com"]

[Event "Titled Tuesday Blitz May 23 Late 2023"]
[White "Einarsson, Halldor Gretar"]
[Black "Perez, Maximiliano"]
[WhiteFideId "2300150"]
[BlackFideId "117234"]
[WhiteElo "2110"]
[BlackElo "2344"]
[Result "1-0"]
[Round "02"]
[TimeControl "180+2"]
[Date "2023.05.23"]
[WhiteClock "0:00:02"]
[BlackClock "0:00:02"]

1. d4 {[%clk 0:03:00]}  Nf6 {[%clk 0:02:59]} 2. c4 {[%clk 0:02:58]}  g6 {[%clk 0:02:59]} 3. f3 {[%clk 0:02:57]}  Bg7 {[%clk 0:02:56]} 4. e4 {[%clk 0:02:57]}  d6 {[%clk 0:02:57]} 5. Nc3 {[%clk 0:02:57]}  O-O {[%clk 0:02:57]} 6. Be3 {[%clk 0:02:57]}  Nc6 {[%clk 0:02:52]} 7. Qd2 {[%clk 0:02:57]}  a6 {[%clk 0:02:52]} 8. Rc1 {[%clk 0:02:53]}  e5 {[%clk 0:02:46]} 9. Nge2 {[%clk 0:02:48]}  Nd7 {[%clk 0:02:25]} 10. d5 {[%clk 0:01:56]}  Ne7 {[%clk 0:02:09]} 11. g3 {[%clk 0:01:48]}  f5 {[%clk 0:02:09]} 12. Bh3 {[%clk 0:01:39]}  Nf6 {[%clk 0:02:08]} 13. O-O {[%clk 0:01:33]}  f4 {[%clk 0:02:08]} 14. Bxc8 {[%clk 0:01:21]}  Qxc8 {[%clk 0:02:09]} 15. gxf4 {[%clk 0:01:18]}  Nh5 {[%clk 0:02:08]} 16. fxe5 {[%clk 0:00:56]}  Bxe5 {[%clk 0:02:02]} 17. f4 {[%clk 0:00:53]}  Bg7 {[%clk 0:02:00]} 18. Rf2 {[%clk 0:00:31]}  Qg4+ {[%clk 0:01:43]} 19. Rg2 {[%clk 0:00:29]}  Qh3 {[%clk 0:01:29]} 20. Rf1 {[%clk 0:00:28]}  Rf7 {[%clk 0:01:27]} 21. Ng3 {[%clk 0:00:20]}  Raf8 {[%clk 0:01:19]} 22. Nxh5 {[%clk 0:00:20]}  Qxh5 {[%clk 0:01:20]} 23. Ne2 {[%clk 0:00:19]}  Kh8 {[%clk 0:01:18]} 24. Nd4 {[%clk 0:00:18]}  Ng8 {[%clk 0:01:10]} 25. Ne6 {[%clk 0:00:18]}  Re8 {[%clk 0:01:10]} 26. Nxg7 {[%clk 0:00:17]}  Kxg7 {[%clk 0:01:11]} 27. Bd4+ {[%clk 0:00:17]}  Kf8 {[%clk 0:01:11]} 28. e5 {[%clk 0:00:17]}  Nh6 {[%clk 0:01:00]} 29. Rg5 {[%clk 0:00:15]}  Qh4 {[%clk 0:00:58]} 30. e6 {[%clk 0:00:13]}  Rf5 {[%clk 0:00:55]} 31. Rxf5+ {[%clk 0:00:13]}  Nxf5 {[%clk 0:00:56]} 32. Bf2 {[%clk 0:00:11]}  Qg4+ {[%clk 0:00:54]} 33. Bg3 {[%clk 0:00:10]}  Nxg3 {[%clk 0:00:52]} 34. hxg3 {[%clk 0:00:10]}  Qxg3+ {[%clk 0:00:52]} 35. Qg2 {[%clk 0:00:10]}  Qe3+ {[%clk 0:00:38]} 36. Qf2 {[%clk 0:00:10]}  Qxf2+ {[%clk 0:00:30]} 37. Rxf2 {[%clk 0:00:10]}  Ke7 {[%clk 0:00:30]} 38. f5 {[%clk 0:00:10]}  Rg8 {[%clk 0:00:28]} 39. f6+ {[%clk 0:00:09]}  Kf8 {[%clk 0:00:28]} 40. f7 {[%clk 0:00:08]}  Rh8 {[%clk 0:00:28]} 41. Kg2 {[%clk 0:00:07]}  Ke7 {[%clk 0:00:27]} 42. Kg3 {[%clk 0:00:07]}  h6 {[%clk 0:00:25]} 43. Kg4 {[%clk 0:00:07]}  c6 {[%clk 0:00:24]} 44. b3 {[%clk 0:00:06]}  Rf8 {[%clk 0:00:23]} 45. Rf3 {[%clk 0:00:05]}  Rh8 {[%clk 0:00:23]} 46. Rf2 {[%clk 0:00:06]}  c5 {[%clk 0:00:22]} 47. Rf3 {[%clk 0:00:06]}  Kf8 {[%clk 0:00:15]} 48. a3 {[%clk 0:00:05]}  Ke7 {[%clk 0:00:14]} 49. b4 {[%clk 0:00:05]}  b6 {[%clk 0:00:14]} 50. bxc5 {[%clk 0:00:05]}  dxc5 {[%clk 0:00:11]} 51. Rb3 {[%clk 0:00:04]}  Rb8 {[%clk 0:00:11]} 52. a4 {[%clk 0:00:02]}  Rb7 {[%clk 0:00:05]} 53. Kf4 {[%clk 0:00:02]}  Rb8 {[%clk 0:00:04]} 54. Ke5 {[%clk 0:00:02]}  Kf8 {[%clk 0:00:03]} 55. Kf6 {[%clk 0:00:01]}  Rb7 {[%clk 0:00:02]} 56. d6 {[%clk 0:00:02]} 1-0


[Site "https://www.chess.com"]

[Event "Titled Tuesday Blitz May 23 Late 2023"]
[White "Remolar Gallen, Jose"]
[Black "Doluhanova, Evgeniya"]
[WhiteFideId "2215187"]
[BlackFideId "14112035"]
[WhiteElo "2223"]
[BlackElo "2159"]
[Result "0-1"]
[Round "02"]
[TimeControl "180+2"]
[Date "2023.05.23"]
[WhiteClock "0:00:02"]
[BlackClock "0:00:11"]

1. d4 {[%clk 0:03:00]}  Nf6 {[%clk 0:02:58]} 2. Nf3 {[%clk 0:03:00]}  e6 {[%clk 0:02:57]} 3. e3 {[%clk 0:03:00]}  b6 {[%clk 0:02:57]} 4. Bd3 {[%clk 0:03:01]}  Bb7 {[%clk 0:02:58]} 5. O-O {[%clk 0:03:02]}  Be7 {[%clk 0:02:58]} 6. Nbd2 {[%clk 0:03:02]}  O-O {[%clk 0:02:59]} 7. b3 {[%clk 0:03:03]}  d6 {[%clk 0:02:59]} 8. Bb2 {[%clk 0:03:04]}  Nbd7 {[%clk 0:03:00]} 9. Qe2 {[%clk 0:03:04]}  e5 {[%clk 0:02:59]} 10. dxe5 {[%clk 0:02:59]}  dxe5 {[%clk 0:02:58]} 11. Nxe5 {[%clk 0:02:51]}  Nxe5 {[%clk 0:02:57]} 12. Bxe5 {[%clk 0:02:52]}  Qd5 {[%clk 0:02:57]} 13. Nf3 {[%clk 0:02:52]}  Ne4 {[%clk 0:02:51]} 14. c4 {[%clk 0:02:29]}  Qc6 {[%clk 0:02:38]} 15. Bb2 {[%clk 0:02:08]}  Ng5 {[%clk 0:02:32]} 16. e4 {[%clk 0:01:47]}  Nxe4 {[%clk 0:02:27]} 17. Ne5 {[%clk 0:01:18]}  Nc3 {[%clk 0:02:25]} 18. Bxh7+ {[%clk 0:01:17]}  Kh8 {[%clk 0:02:21]} 19. Qg4 {[%clk 0:01:15]}  Ne2+ {[%clk 0:02:02]} 20. Kh1 {[%clk 0:01:13]}  Qxg2+ {[%clk 0:02:01]} 21. Qxg2 {[%clk 0:01:13]}  Bxg2+ {[%clk 0:02:00]} 22. Kxg2 {[%clk 0:01:13]}  Kxh7 {[%clk 0:02:00]} 23. Kf3 {[%clk 0:01:11]}  Rfe8 {[%clk 0:01:18]} 24. Kxe2 {[%clk 0:01:03]}  Bd6 {[%clk 0:01:18]} 25. f4 {[%clk 0:00:57]}  f6 {[%clk 0:01:18]} 26. Rae1 {[%clk 0:00:22]}  fxe5 {[%clk 0:01:17]} 27. fxe5 {[%clk 0:00:23]}  Bxe5 {[%clk 0:01:17]} 28. Bxe5 {[%clk 0:00:23]}  Rxe5+ {[%clk 0:01:16]} 29. Kd3 {[%clk 0:00:24]}  Rd8+ {[%clk 0:01:15]} 30. Kc3 {[%clk 0:00:22]}  Rxe1 {[%clk 0:00:46]} 31. Rxe1 {[%clk 0:00:23]}  Rd7 {[%clk 0:00:46]} 32. b4 {[%clk 0:00:23]}  Rf7 {[%clk 0:00:39]} 33. Re2 {[%clk 0:00:20]}  c5 {[%clk 0:00:33]} 34. bxc5 {[%clk 0:00:17]}  bxc5 {[%clk 0:00:34]} 35. Kb3 {[%clk 0:00:17]}  Rb7+ {[%clk 0:00:32]} 36. Kc3 {[%clk 0:00:16]}  Kg6 {[%clk 0:00:30]} 37. Re5 {[%clk 0:00:15]}  Rc7 {[%clk 0:00:30]} 38. Kd3 {[%clk 0:00:09]}  Kf6 {[%clk 0:00:30]} 39. Ke4 {[%clk 0:00:08]}  g5 {[%clk 0:00:29]} 40. h3 {[%clk 0:00:08]}  Kg6 {[%clk 0:00:19]} 41. a4 {[%clk 0:00:07]}  Kh5 {[%clk 0:00:18]} 42. Kd5 {[%clk 0:00:04]}  Kh4 {[%clk 0:00:17]} 43. Kd6 {[%clk 0:00:05]}  Rg7 {[%clk 0:00:17]} 44. Kxc5 {[%clk 0:00:02]}  Kxh3 {[%clk 0:00:17]} 45. Re3+ {[%clk 0:00:02]}  Kg2 {[%clk 0:00:15]} 46. Kd6 {[%clk 0:00:02]}  g4 {[%clk 0:00:15]} 47. c5 {[%clk 0:00:03]}  Kf2 {[%clk 0:00:15]} 48. Re7 {[%clk 0:00:03]}  Rg6+ {[%clk 0:00:14]} 49. Re6 {[%clk 0:00:02]}  Rxe6+ {[%clk 0:00:10]} 50. Kxe6 {[%clk 0:00:03]}  g3 {[%clk 0:00:10]} 51. c6 {[%clk 0:00:03]}  g2 {[%clk 0:00:11]} 52. c7 {[%clk 0:00:04]}  g1=Q {[%clk 0:00:11]} 53. c8=Q {[%clk 0:00:04]}  Qg4+ {[%clk 0:00:11]} 54. Ke7 {[%clk 0:00:02]}  Qxc8 {[%clk 0:00:11]} 0-1


[Site "https://www.chess.com"]